[Event "*** Titled Tuesday Blitz"]
[Site "Chess.com"]
[Date "2019.03.05"]
[Round "3"]
[White "diskeleven"]
[Black "BlackBoarder"]
[Result "1-0"]
[WhiteElo "2283"]
[BlackElo "2537"]
[TimeControl "180+2"]
[EndTime "13:43:51 PST"]
[Termination "diskeleven won by resignation"]

1. d4 {[%clk 0:03:01.9]} 1... e6 {[%clk 0:03:00.4]} 2. c4 {[%clk 0:03:02.7]}
2... Nf6 {[%clk 0:02:59.9]} 3. Nc3 {[%clk 0:03:03.2]} 3... Bb4 {[%clk
0:03:00.9]} 4. Nf3 {[%clk 0:03:04]} 4... b6 {[%clk 0:03:00.3]} 5. Bd2 {[%clk
0:03:04.7]} 5... O-O {[%clk 0:02:56.6]} 6. e3 {[%clk 0:03:03.5]} 6... c5 {[%clk
0:02:57.3]} 7. a3 {[%clk 0:02:47.9]} 7... Bxc3 {[%clk 0:02:57.3]} 8. Bxc3 {[%clk
0:02:49.1]} 8... Ne4 {[%clk 0:02:56]} 9. Rc1 {[%clk 0:02:40]} 9... Bb7 {[%clk
0:02:44.9]} 10. Bd3 {[%clk 0:02:40.4]} 10... Nxc3 {[%clk 0:02:44.6]} 11. Rxc3
{[%clk 0:02:41]} 11... Nc6 {[%clk 0:02:34.5]} 12. O-O {[%clk 0:02:40.4]} 12...
cxd4 {[%clk 0:02:27.5]} 13. exd4 {[%clk 0:02:40.5]} 13... d5 {[%clk 0:02:28.2]}
14. c5 {[%clk 0:02:32.5]} 14... Rc8 {[%clk 0:02:26.7]} 15. b4 {[%clk 0:02:32.5]}
15... a6 {[%clk 0:02:05.7]} 16. Re1 {[%clk 0:02:31.7]} 16... b5 {[%clk
0:02:03.2]} 17. Bb1 {[%clk 0:02:19.2]} 17... a5 {[%clk 0:01:56]} 18. Rb3 {[%clk
0:02:18.7]} 18... axb4 {[%clk 0:01:52.6]} 19. axb4 {[%clk 0:02:19.3]} 19... g6
{[%clk 0:01:47]} 20. Qd2 {[%clk 0:02:17.5]} 20... Kg7 {[%clk 0:01:43.7]} 21. Ne5
{[%clk 0:02:12.9]} 21... Ra8 {[%clk 0:01:36.5]} 22. Rh3 {[%clk 0:02:11.4]} 22...
h5 {[%clk 0:01:31.9]} 23. Rg3 {[%clk 0:01:38.6]} 23... h4 {[%clk 0:01:05.9]} 24.
Rg4 {[%clk 0:01:27.9]} 24... Nxe5 {[%clk 0:00:50.6]} 25. Rxe5 {[%clk 0:01:26.8]}
25... Qf6 {[%clk 0:00:44.1]} 26. Rf4 {[%clk 0:01:21.6]} 26... Qe7 {[%clk
0:00:37.9]} 27. Qc3 {[%clk 0:01:19.4]} 27... Bc6 {[%clk 0:00:32.3]} 28. Re1
{[%clk 0:01:18.6]} 28... Ra7 {[%clk 0:00:28.6]} 29. Qh3 {[%clk 0:01:19.6]} 29...
Rh8 {[%clk 0:00:23.6]} 30. Qc3 {[%clk 0:01:05.5]} 30... Qg5 {[%clk 0:00:22.5]}
31. g3 {[%clk 0:00:59.9]} 31... hxg3 {[%clk 0:00:19.2]} 32. fxg3 {[%clk
0:01:01.1]} 32... Rha8 {[%clk 0:00:19.1]} 33. Ref1 {[%clk 0:01:01.7]} 33... f5
{[%clk 0:00:19]} 34. Qe3 {[%clk 0:01:02.1]} 34... Qf6 {[%clk 0:00:19]} 35. Rh4
{[%clk 0:01:01.5]} 35... g5 {[%clk 0:00:18.7]} 36. Rh5 {[%clk 0:01:02.4]} 36...
Kg6 {[%clk 0:00:20.1]} 37. g4 {[%clk 0:01:03.3]} 37... Ra1 {[%clk 0:00:17.2]}
38. Qxe6 {[%clk 0:00:53.8]} 38... Qxe6 {[%clk 0:00:12.9]} 39. Bxf5+ {[%clk
0:00:45.3]} 39... Kf6 {[%clk 0:00:12.5]} 40. Rh6+ {[%clk 0:00:45.3]} 40... Kg7
{[%clk 0:00:10.4]} 41. Rxe6 {[%clk 0:00:45.3]} 41... Rxf1+ {[%clk 0:00:11.5]}
42. Kxf1 {[%clk 0:00:46.2]} 42... Ra1+ {[%clk 0:00:12.6]} 43. Kf2 {[%clk
0:00:45.7]} 43... Ra2+ {[%clk 0:00:13]} 44. Kg3 {[%clk 0:00:43.4]} 44... Ra3+
{[%clk 0:00:13.2]} 45. Kf2 {[%clk 0:00:41.6]} 45... Ra2+ {[%clk 0:00:14.3]} 46.
Re2 {[%clk 0:00:42.5]} 46... Ra4 {[%clk 0:00:13.2]} 47. Rb2 {[%clk 0:00:41.8]}
47... Kf6 {[%clk 0:00:12.7]} 48. Rb3 {[%clk 0:00:40.8]} 48... Ra2+ {[%clk
0:00:13.2]} 49. Kg3 {[%clk 0:00:42]} 49... Rd2 {[%clk 0:00:12.3]} 50. Rd3 {[%clk
0:00:41.7]} 50... Rb2 {[%clk 0:00:13.1]} 51. Re3 {[%clk 0:00:41.6]} 51... Kf7
{[%clk 0:00:09.7]} 52. h4 {[%clk 0:00:40.3]} 52... gxh4+ {[%clk 0:00:09.1]} 53.
Kxh4 {[%clk 0:00:41.5]} 53... Rxb4 {[%clk 0:00:10.8]} 54. Re6 {[%clk 0:00:41.8]}
54... Bd7 {[%clk 0:00:10.7]} 55. Rb6 {[%clk 0:00:35.5]} 55... Bxf5 {[%clk
0:00:10.3]} 56. gxf5 {[%clk 0:00:36.9]} 56... Rxd4+ {[%clk 0:00:10.7]} 57. Kg5
{[%clk 0:00:38.2]} 57... b4 {[%clk 0:00:05.5]} 58. c6 {[%clk 0:00:36.3]} 58...
Rc4 {[%clk 0:00:04.8]} 59. Rb7+ {[%clk 0:00:37.7]} 59... Kg8 {[%clk 0:00:05.1]}
60. c7 {[%clk 0:00:38.1]} 60... b3 {[%clk 0:00:02.7]} 61. Rb8+ {[%clk
0:00:38.9]} 61... Kf7 {[%clk 0:00:04.2]} 62. c8=Q {[%clk 0:00:40.2]} 62... Rxc8
{[%clk 0:00:06]} 63. Rxc8 {[%clk 0:00:41.3]} 63... d4 {[%clk 0:00:06.3]} 64.
Rc7+ {[%clk 0:00:43.2]} 64... Ke8 {[%clk 0:00:07.1]} 65. f6 {[%clk 0:00:44.2]}
65... d3 {[%clk 0:00:07.1]} 66. Rc1 {[%clk 0:00:44.6]} 66... Kf7 {[%clk
0:00:04.1]} 67. Rb1 {[%clk 0:00:45.3]} 67... d2 {[%clk 0:00:04.8]} 68. Kf5
{[%clk 0:00:45.9]} 68... b2 {[%clk 0:00:05.2]} 69. Ke4 {[%clk 0:00:47]} 69...
Kxf6 {[%clk 0:00:04.9]} 70. Kd3 {[%clk 0:00:48.1]} 70... Ke5 {[%clk 0:00:05.8]}
71. Kxd2 {[%clk 0:00:49.4]} 71... Kd4 {[%clk 0:00:07.1]} 72. Kc2 {[%clk
0:00:50.6]} 1-0

[Event "*** Titled Tuesday Blitz"]
[Site "Chess.com"]
[Date "2019.03.05"]
[Round "3"]
[White "Blitzstream"]
[Black "AkibaRubi"]
[Result "1-0"]
[WhiteElo "2568"]
[BlackElo "2576"]
[TimeControl "180+2"]
[EndTime "13:43:55 PST"]
[Termination "Blitzstream won by resignation"]

1. e4 {[%clk 0:02:59.4]} 1... e5 {[%clk 0:02:56.5]} 2. Nf3 {[%clk 0:03:00.1]}
2... Nc6 {[%clk 0:02:57.5]} 3. d4 {[%clk 0:03:01.5]} 3... exd4 {[%clk
0:02:56.9]} 4. Nxd4 {[%clk 0:03:02.7]} 4... Bc5 {[%clk 0:02:57.7]} 5. Nb3 {[%clk
0:03:02.7]} 5... Bb6 {[%clk 0:02:58]} 6. Nc3 {[%clk 0:03:03.9]} 6... Nf6 {[%clk
0:02:58.8]} 7. Bg5 {[%clk 0:03:01.8]} 7... h6 {[%clk 0:02:59.2]} 8. Bh4 {[%clk
0:03:02.5]} 8... O-O {[%clk 0:02:57.6]} 9. Bd3 {[%clk 0:02:44]} 9... g5 {[%clk
0:02:51.3]} 10. Bg3 {[%clk 0:02:43.4]} 10... d5 {[%clk 0:02:52.3]} 11. Nxd5
{[%clk 0:01:54.4]} 11... Nxd5 {[%clk 0:02:41.1]} 12. exd5 {[%clk 0:01:56.3]}
12... Re8+ {[%clk 0:02:42.3]} 13. Kf1 {[%clk 0:01:51.2]} 13... Nb4 {[%clk
0:02:41.3]} 14. h4 {[%clk 0:01:47]} 14... Qxd5 {[%clk 0:02:34.9]} 15. hxg5
{[%clk 0:01:46.1]} 15... Nxd3 {[%clk 0:02:35.1]} 16. cxd3 {[%clk 0:01:40.8]}
16... Qxg5 {[%clk 0:02:07.6]} 17. Qh5 {[%clk 0:01:41.3]} 17... Bf5 {[%clk
0:01:56.7]} 18. Qxh6 {[%clk 0:01:34.3]} 18... Bxd3+ {[%clk 0:01:56.3]} 19. Kg1
{[%clk 0:01:35.5]} 19... Qxh6 {[%clk 0:01:45.5]} 20. Rxh6 {[%clk 0:01:37.4]}
20... Re2 {[%clk 0:01:33.2]} 21. Rd1 {[%clk 0:01:30.4]} 21... Bf5 {[%clk
0:01:18.2]} 22. Rd5 {[%clk 0:00:44.3]} 22... Kg7 {[%clk 0:00:41.1]} 23. Rh4
{[%clk 0:00:45.1]} 23... Re1+ {[%clk 0:00:30.8]} 24. Kh2 {[%clk 0:00:45.6]}
24... Bg6 {[%clk 0:00:32]} 25. Be5+ {[%clk 0:00:43.1]} 25... Rxe5 {[%clk
0:00:32.9]} 26. Rxe5 {[%clk 0:00:43.3]} 26... Bxf2 {[%clk 0:00:34.8]} 27. Rh3
{[%clk 0:00:38.6]} 27... Rd8 {[%clk 0:00:34.9]} 28. Re7 {[%clk 0:00:28.8]} 28...
Bb6 {[%clk 0:00:34.9]} 29. a4 {[%clk 0:00:27.6]} 29... a5 {[%clk 0:00:34]} 30.
Re5 {[%clk 0:00:27.5]} 30... c6 {[%clk 0:00:30.3]} 31. Re7 {[%clk 0:00:27.1]}
31... Rb8 {[%clk 0:00:28.4]} 32. Rf3 {[%clk 0:00:22.7]} 32... Kf8 {[%clk
0:00:27.6]} 33. Rd7 {[%clk 0:00:21.6]} 33... Ke8 {[%clk 0:00:28.1]} 34. Rd1
{[%clk 0:00:21.7]} 34... Bc7+ {[%clk 0:00:29.1]} 35. g3 {[%clk 0:00:22.4]} 35...
Bc2 {[%clk 0:00:27.2]} 36. Rd2 {[%clk 0:00:21.8]} 36... Be4 {[%clk 0:00:25.2]}
37. Re3 {[%clk 0:00:21.2]} 37... f5 {[%clk 0:00:26.3]} 38. Nc5 {[%clk
0:00:22.5]} 38... Bb6 {[%clk 0:00:25.5]} 39. Rc3 {[%clk 0:00:22.6]} 39... Bxc5
{[%clk 0:00:25.3]} 40. Rxc5 {[%clk 0:00:23.5]} 40... Ke7 {[%clk 0:00:26.8]} 41.
g4 {[%clk 0:00:23.7]} 41... Ke6 {[%clk 0:00:16]} 42. gxf5+ {[%clk 0:00:23.2]}
42... Bxf5 {[%clk 0:00:17.9]} 43. Re2+ {[%clk 0:00:23.8]} 43... Kf6 {[%clk
0:00:19.1]} 44. Rf2 {[%clk 0:00:24.5]} 44... Rh8+ {[%clk 0:00:20.5]} 45. Kg3
{[%clk 0:00:22.8]} 45... Rg8+ {[%clk 0:00:21]} 46. Kh2 {[%clk 0:00:19]} 46...
Rg5 {[%clk 0:00:19.5]} 47. Rxa5 {[%clk 0:00:20]} 47... Rh5+ {[%clk 0:00:20]} 48.
Kg1 {[%clk 0:00:20.1]} 48... Rg5+ {[%clk 0:00:21.2]} 49. Rg2 {[%clk 0:00:21]}
49... Rh5 {[%clk 0:00:22.3]} 50. Kf2 {[%clk 0:00:21.6]} 50... Ke6 {[%clk
0:00:21.8]} 51. Ke1 {[%clk 0:00:19.1]} 51... Rh1+ {[%clk 0:00:20.2]} 52. Kd2
{[%clk 0:00:20]} 52... Be4 {[%clk 0:00:21.1]} 53. Re2 {[%clk 0:00:20.9]} 53...
Rh4 {[%clk 0:00:21.6]} 54. Ra7 {[%clk 0:00:21]} 54... b5 {[%clk 0:00:20.9]} 55.
axb5 {[%clk 0:00:21.2]} 55... cxb5 {[%clk 0:00:22.8]} 56. Ra5 {[%clk 0:00:21.4]}
56... Kd5 {[%clk 0:00:21.6]} 57. Rxb5+ {[%clk 0:00:22.1]} 57... Kc4 {[%clk
0:00:22.9]} 58. Rb8 {[%clk 0:00:21.1]} 58... Bd5 {[%clk 0:00:23]} 59. b3+ {[%clk
0:00:21.5]} 59... Kc5 {[%clk 0:00:23.4]} 60. Re5 {[%clk 0:00:21.2]} 60... Kd4
{[%clk 0:00:23]} 61. Re2 {[%clk 0:00:19.7]} 61... Rh3 {[%clk 0:00:23.8]} 62. Kc2
{[%clk 0:00:15.4]} 62... Rc3+ {[%clk 0:00:24.6]} 63. Kb2 {[%clk 0:00:16.2]}
63... Rd3 {[%clk 0:00:26.5]} 64. Rc2 {[%clk 0:00:16.7]} 64... Rh3 {[%clk
0:00:25.8]} 65. Rb4+ {[%clk 0:00:17.4]} 65... Ke5 {[%clk 0:00:26.6]} 66. Rb5
{[%clk 0:00:18.7]} 66... Ke6 {[%clk 0:00:27.9]} 67. Re2+ {[%clk 0:00:19.6]}
67... Kd6 {[%clk 0:00:29.1]} 68. Rd2 {[%clk 0:00:20.4]} 68... Rh5 {[%clk
0:00:30.4]} 69. Ka3 {[%clk 0:00:21.6]} 69... Kc6 {[%clk 0:00:31.7]} 70. Rbxd5
{[%clk 0:00:22.8]} 70... Rxd5 {[%clk 0:00:33.6]} 71. Rxd5 {[%clk 0:00:24.6]}
71... Kxd5 {[%clk 0:00:35.5]} 72. Ka4 {[%clk 0:00:26.2]} 1-0

[Event "*** Titled Tuesday Blitz"]
[Site "Chess.com"]
[Date "2019.03.05"]
[Round "3"]
[White "Yurovskykh_Oleksandr"]
[Black "Grieve72"]
[Result "0-1"]
[WhiteElo "2512"]
[BlackElo "2356"]
[TimeControl "180+2"]
[EndTime "13:43:58 PST"]
[Termination "Grieve72 won by checkmate"]

1. d4 {[%clk 0:03:01.9]} 1... d5 {[%clk 0:02:58.9]} 2. Bf4 {[%clk 0:02:58]} 2...
e6 {[%clk 0:02:58.2]} 3. e3 {[%clk 0:02:59]} 3... Nf6 {[%clk 0:02:58.8]} 4. Nd2
{[%clk 0:02:59.2]} 4... Bd6 {[%clk 0:02:58.4]} 5. Bg3 {[%clk 0:03:00.2]} 5...
O-O {[%clk 0:02:58.3]} 6. Ngf3 {[%clk 0:03:00.1]} 6... b6 {[%clk 0:02:58.5]} 7.
Bd3 {[%clk 0:03:00.2]} 7... c5 {[%clk 0:02:45.5]} 8. c3 {[%clk 0:02:52.6]} 8...
Bb7 {[%clk 0:02:44.3]} 9. Qe2 {[%clk 0:02:50.1]} 9... Ne4 {[%clk 0:02:32.9]} 10.
Bxd6 {[%clk 0:02:28.6]} 10... Qxd6 {[%clk 0:02:32.5]} 11. Bxe4 {[%clk
0:02:27.6]} 11... dxe4 {[%clk 0:02:24.5]} 12. Ng5 {[%clk 0:02:29.1]} 12... f5
{[%clk 0:02:08.4]} 13. Nc4 {[%clk 0:02:17.9]} 13... Qe7 {[%clk 0:02:02.4]} 14.
Qh5 {[%clk 0:02:18.5]} 14... h6 {[%clk 0:01:43.3]} 15. h4 {[%clk 0:02:19.2]}
15... Nd7 {[%clk 0:01:14.1]} 16. Qg6 {[%clk 0:01:57.6]} 16... hxg5 {[%clk
0:00:44.6]} 17. hxg5 {[%clk 0:01:59.5]} 17... Bd5 {[%clk 0:00:37.2]} 18. Qh5
{[%clk 0:01:47.2]} 18... g6 {[%clk 0:00:24.6]} 19. Qh8+ {[%clk 0:01:30.6]} 19...
Kf7 {[%clk 0:00:25]} 20. Rh7+ {[%clk 0:01:27.2]} 20... Ke8 {[%clk 0:00:25.8]}
21. Rxe7+ {[%clk 0:01:20.9]} 21... Kxe7 {[%clk 0:00:27.7]} 22. Qh7+ {[%clk
0:01:18.3]} 22... Rf7 {[%clk 0:00:23.1]} 23. Qxg6 {[%clk 0:01:19.2]} 23... Bxc4
{[%clk 0:00:11.1]} 24. b3 {[%clk 0:01:20.3]} 24... Rh8 {[%clk 0:00:09.3]} 25.
bxc4 {[%clk 0:00:37.4]} 25... Nf8 {[%clk 0:00:09.3]} 26. Qh6 {[%clk 0:00:30.2]}
26... Rxh6 {[%clk 0:00:08.9]} 27. gxh6 {[%clk 0:00:32.1]} 27... Kd6 {[%clk
0:00:04.1]} 28. Ke2 {[%clk 0:00:25.1]} 28... Rh7 {[%clk 0:00:04.7]} 29. Rh1
{[%clk 0:00:26.1]} 29... Nd7 {[%clk 0:00:05.1]} 30. a4 {[%clk 0:00:15.4]} 30...
Nf6 {[%clk 0:00:04]} 31. f3 {[%clk 0:00:15.6]} 31... Ng8 {[%clk 0:00:02.6]} 32.
a5 {[%clk 0:00:17]} 32... Rxh6 {[%clk 0:00:03.1]} 33. Ra1 {[%clk 0:00:12.8]}
33... Rg6 {[%clk 0:00:03.4]} 34. axb6 {[%clk 0:00:10.3]} 34... axb6 {[%clk
0:00:05.3]} 35. Kf2 {[%clk 0:00:09.6]} 35... Nf6 {[%clk 0:00:06.2]} 36. Ra7
{[%clk 0:00:08.6]} 36... Nd7 {[%clk 0:00:07.2]} 37. Ra8 {[%clk 0:00:08]} 37...
exf3 {[%clk 0:00:07.7]} 38. gxf3 {[%clk 0:00:08.6]} 38... Rh6 {[%clk 0:00:09.2]}
39. Kg2 {[%clk 0:00:09.6]} 39... Rg6+ {[%clk 0:00:09.3]} 40. Kf2 {[%clk
0:00:10.6]} 40... Kc6 {[%clk 0:00:10.7]} 41. Rc8+ {[%clk 0:00:11.1]} 41... Kd6
{[%clk 0:00:11.8]} 42. Rd8 {[%clk 0:00:12.6]} 42... Kc7 {[%clk 0:00:12.4]} 43.
Re8 {[%clk 0:00:13.3]} 43... Rh6 {[%clk 0:00:12.6]} 44. Kg2 {[%clk 0:00:13.7]}
44... Kd6 {[%clk 0:00:13.4]} 45. Rd8 {[%clk 0:00:14.5]} 45... Rf6 {[%clk
0:00:12.9]} 46. Kg3 {[%clk 0:00:10.3]} 46... Kc7 {[%clk 0:00:10.4]} 47. Re8
{[%clk 0:00:11]} 47... Rh6 {[%clk 0:00:07.4]} 48. Kg2 {[%clk 0:00:11.7]} 48...
Rg6+ {[%clk 0:00:07.9]} 49. Kf2 {[%clk 0:00:12.7]} 49... Rf6 {[%clk 0:00:08.6]}
50. Re7 {[%clk 0:00:13]} 50... Kd6 {[%clk 0:00:09.4]} 51. Re8 {[%clk 0:00:14.3]}
51... Rf8 {[%clk 0:00:10.5]} 52. Rxf8 {[%clk 0:00:10.1]} 52... Nxf8 {[%clk
0:00:12.4]} 53. e4 {[%clk 0:00:11.4]} 53... Ng6 {[%clk 0:00:10.3]} 54. Kg3
{[%clk 0:00:12.7]} 54... fxe4 {[%clk 0:00:10.6]} 55. fxe4 {[%clk 0:00:14.6]}
55... e5 {[%clk 0:00:11.7]} 56. d5 {[%clk 0:00:09.2]} 56... Nh8 {[%clk
0:00:12.4]} 57. Kg4 {[%clk 0:00:08.9]} 57... Nf7 {[%clk 0:00:13.5]} 58. Kf5
{[%clk 0:00:10]} 58... Nd8 {[%clk 0:00:14.8]} 59. Kg4 {[%clk 0:00:08.6]} 59...
Nb7 {[%clk 0:00:16]} 60. Kf3 {[%clk 0:00:09.5]} 60... Na5 {[%clk 0:00:17.3]} 61.
Ke3 {[%clk 0:00:11.2]} 61... Nxc4+ {[%clk 0:00:18.4]} 62. Kd3 {[%clk 0:00:13.1]}
62... Na5 {[%clk 0:00:19.4]} 63. c4 {[%clk 0:00:14.6]} 63... Kc7 {[%clk
0:00:17.8]} 64. Kc3 {[%clk 0:00:15.8]} 64... Nb7 {[%clk 0:00:18.7]} 65. Kb3
{[%clk 0:00:16.8]} 65... Nd6 {[%clk 0:00:19.7]} 66. Ka4 {[%clk 0:00:18.4]} 66...
Nxe4 {[%clk 0:00:20.6]} 67. Kb5 {[%clk 0:00:20]} 67... Nd6+ {[%clk 0:00:21.8]}
68. Ka6 {[%clk 0:00:21.1]} 68... e4 {[%clk 0:00:22.4]} 69. Ka7 {[%clk 0:00:22]}
69... e3 {[%clk 0:00:23.5]} 70. Ka8 {[%clk 0:00:23.5]} 70... e2 {[%clk
0:00:24.6]} 71. Ka7 {[%clk 0:00:25.1]} 71... e1=Q {[%clk 0:00:25.7]} 72. Ka8
{[%clk 0:00:26.6]} 72... Qa1# {[%clk 0:00:27.6]} 0-1

[Event "*** Titled Tuesday Blitz"]
[Site "Chess.com"]
[Date "2019.03.05"]
[Round "3"]
[White "Maili15"]
[Black "PaulfromSPb"]
[Result "0-1"]
[WhiteElo "2272"]
[BlackElo "2603"]
[TimeControl "180+2"]
[EndTime "13:44:01 PST"]
[Termination "PaulfromSPb won by resignation"]

1. d4 {[%clk 0:03:01.9]} 1... Nf6 {[%clk 0:03:00.5]} 2. c4 {[%clk 0:03:02.9]}
2... e6 {[%clk 0:03:01.1]} 3. Nc3 {[%clk 0:03:03.7]} 3... Bb4 {[%clk 0:03:01]}
4. e3 {[%clk 0:03:04.7]} 4... O-O {[%clk 0:03:01.9]} 5. Bd3 {[%clk 0:03:04.9]}
5... c5 {[%clk 0:03:02.4]} 6. Nf3 {[%clk 0:03:03.5]} 6... d5 {[%clk 0:03:03.1]}
7. O-O {[%clk 0:02:59.5]} 7... Bxc3 {[%clk 0:02:57]} 8. bxc3 {[%clk 0:03:00.1]}
8... Nc6 {[%clk 0:02:58.9]} 9. Qe2 {[%clk 0:02:54.1]} 9... dxc4 {[%clk
0:02:55.9]} 10. Bxc4 {[%clk 0:02:54.2]} 10... Qc7 {[%clk 0:02:56.5]} 11. Rd1
{[%clk 0:02:24.5]} 11... Na5 {[%clk 0:02:48.2]} 12. Bd3 {[%clk 0:02:22.7]} 12...
Bd7 {[%clk 0:02:45.1]} 13. Ba3 {[%clk 0:02:07.8]} 13... b6 {[%clk 0:02:45.1]}
14. e4 {[%clk 0:02:00.7]} 14... Bc6 {[%clk 0:02:45.4]} 15. dxc5 {[%clk
0:01:43.9]} 15... bxc5 {[%clk 0:02:45.7]} 16. Bxc5 {[%clk 0:01:40.2]} 16... Ba4
{[%clk 0:02:44.7]} 17. Bxf8 {[%clk 0:01:34.9]} 17... Bxd1 {[%clk 0:02:44.6]} 18.
Rxd1 {[%clk 0:01:32.3]} 18... Rxf8 {[%clk 0:02:44.2]} 19. Qc2 {[%clk 0:01:19.8]}
19... Nd7 {[%clk 0:02:41.3]} 20. Bb5 {[%clk 0:01:05.8]} 20... Nc5 {[%clk
0:02:39.8]} 21. e5 {[%clk 0:01:00.7]} 21... a6 {[%clk 0:02:38.5]} 22. Be2 {[%clk
0:01:00.1]} 22... Nc6 {[%clk 0:02:38.5]} 23. Ng5 {[%clk 0:00:34.4]} 23... g6
{[%clk 0:02:38.5]} 24. Ne4 {[%clk 0:00:32.1]} 24... Nxe4 {[%clk 0:02:38.3]} 25.
Qxe4 {[%clk 0:00:33.4]} 25... Qxe5 {[%clk 0:02:39]} 26. Qxe5 {[%clk 0:00:26]}
26... Nxe5 {[%clk 0:02:39.5]} 27. Bxa6 {[%clk 0:00:27.2]} 27... Ra8 {[%clk
0:02:39.1]} 28. Rd6 {[%clk 0:00:21.4]} 28... Rb8 {[%clk 0:02:33.3]} 29. f4
{[%clk 0:00:20.4]} 29... Ng4 {[%clk 0:02:32]} 30. Rd2 {[%clk 0:00:05.7]} 30...
Rb1+ {[%clk 0:02:30.2]} 31. Bf1 {[%clk 0:00:06]} 31... Ne3 {[%clk 0:02:29.7]}
32. Rf2 {[%clk 0:00:06.4]} 32... Rc1 {[%clk 0:02:30.1]} 33. Rf3 {[%clk
0:00:05.2]} 33... Rxc3 {[%clk 0:02:27.7]} 34. h3 {[%clk 0:00:03.4]} 34... Ra3
{[%clk 0:02:21.2]} 35. Kf2 {[%clk 0:00:04.3]} 35... Nd1+ {[%clk 0:02:20.6]} 36.
Ke1 {[%clk 0:00:05.5]} 36... Nc3 {[%clk 0:02:19]} 37. Bc4 {[%clk 0:00:05.8]}
37... Kg7 {[%clk 0:02:11.9]} 38. Kf2 {[%clk 0:00:05.4]} 38... Ne4+ {[%clk
0:02:12.1]} 39. Ke2 {[%clk 0:00:06.3]} 39... Ra4 {[%clk 0:02:09.9]} 40. Bb3
{[%clk 0:00:07]} 40... Ra5 {[%clk 0:02:10.5]} 41. Re3 {[%clk 0:00:07.8]} 41...
Nc5 {[%clk 0:02:10.2]} 42. Kf3 {[%clk 0:00:08]} 42... h5 {[%clk 0:02:10.4]} 43.
Rc3 {[%clk 0:00:08.5]} 43... Kf6 {[%clk 0:02:09.7]} 44. g4 {[%clk 0:00:09.2]}
44... hxg4+ {[%clk 0:02:08.8]} 45. hxg4 {[%clk 0:00:11.1]} 45... Ke7 {[%clk
0:02:10.5]} 46. g5 {[%clk 0:00:11.4]} 46... Kd6 {[%clk 0:02:10.3]} 47. Rc4
{[%clk 0:00:11.5]} 47... Ra3 {[%clk 0:02:08.7]} 48. Rb4 {[%clk 0:00:10.8]} 48...
Kc6 {[%clk 0:02:08.5]} 49. Ke3 {[%clk 0:00:10.9]} 49... Ra7 {[%clk 0:02:07.6]}
50. Kd4 {[%clk 0:00:11.3]} 50... Rd7+ {[%clk 0:02:08.1]} 51. Ke3 {[%clk
0:00:11.6]} 51... Rd3+ {[%clk 0:02:08]} 52. Ke2 {[%clk 0:00:12.3]} 52... Rh3
{[%clk 0:02:08.2]} 53. Rc4 {[%clk 0:00:11.3]} 53... Kb5 {[%clk 0:02:08.1]} 54.
Rd4 {[%clk 0:00:11]} 54... Kc6 {[%clk 0:02:04.4]} 55. Ba4+ {[%clk 0:00:10.3]}
55... Kc7 {[%clk 0:02:03.2]} 56. Bb5 {[%clk 0:00:10.2]} 56... Ra3 {[%clk
0:02:03.2]} 57. Rd2 {[%clk 0:00:10.3]} 57... Ne4 {[%clk 0:02:02.7]} 58. Rc2+
{[%clk 0:00:10.1]} 58... Kd6 {[%clk 0:02:03.5]} 59. Bd3 {[%clk 0:00:10]} 59...
Nc5 {[%clk 0:02:01.4]} 60. Rd2 {[%clk 0:00:09.9]} 60... Kc6 {[%clk 0:01:57.7]}
61. Bc4 {[%clk 0:00:10]} 61... Ra4 {[%clk 0:01:58.2]} 62. Rc2 {[%clk 0:00:10.2]}
62... Kd6 {[%clk 0:01:58.5]} 63. Bb3 {[%clk 0:00:10.8]} 63... Rxf4 {[%clk
0:01:58.5]} 64. Rd2+ {[%clk 0:00:10.7]} 64... Kc6 {[%clk 0:01:58.2]} 65. Rc2
{[%clk 0:00:10.6]} 65... Kb5 {[%clk 0:01:59]} 66. Ke3 {[%clk 0:00:10.1]} 66...
Rf5 {[%clk 0:01:59.5]} 67. Rg2 {[%clk 0:00:09.7]} 67... Nxb3 {[%clk 0:01:56.8]}
68. axb3 {[%clk 0:00:11.6]} 68... Kb4 {[%clk 0:01:58]} 69. Rg3 {[%clk
0:00:10.1]} 69... Kxb3 {[%clk 0:01:58.4]} 70. Ke4+ {[%clk 0:00:11.1]} 70... Kc4
{[%clk 0:01:59.3]} 71. Rg4 {[%clk 0:00:11.7]} 71... Kc5 {[%clk 0:02:00]} 72. Rg3
{[%clk 0:00:12.6]} 72... Kd6 {[%clk 0:02:00.6]} 73. Rd3+ {[%clk 0:00:12.8]}
73... Rd5 {[%clk 0:02:01.3]} 74. Rg3 {[%clk 0:00:14]} 74... Re5+ {[%clk
0:02:02.3]} 75. Kf4 {[%clk 0:00:14.5]} 75... Rd5 {[%clk 0:02:03.3]} 76. Re3
{[%clk 0:00:13.7]} 76... Rd4+ {[%clk 0:02:03.5]} 77. Kf3 {[%clk 0:00:13.2]}
77... e5 {[%clk 0:02:04.5]} 78. Re1 {[%clk 0:00:13.7]} 78... Ke6 {[%clk
0:02:05.5]} 79. Ke3 {[%clk 0:00:10.4]} 79... Kf5 {[%clk 0:02:05.9]} 80. Rg1
{[%clk 0:00:11.1]} 80... Rg4 {[%clk 0:02:05.6]} 81. Rf1+ {[%clk 0:00:12]} 81...
Rf4 {[%clk 0:02:06.1]} 82. Rg1 {[%clk 0:00:12.9]} 82... e4 {[%clk 0:02:07]} 83.
Rg2 {[%clk 0:00:13.4]} 83... Rf3+ {[%clk 0:02:07.8]} 84. Ke2 {[%clk 0:00:14.1]}
84... Ke5 {[%clk 0:02:05.3]} 85. Rg4 {[%clk 0:00:14]} 85... Kd4 {[%clk
0:02:05.2]} 86. Rg2 {[%clk 0:00:13.5]} 86... Ra3 {[%clk 0:02:05.5]} 87. Rg4
{[%clk 0:00:13.7]} 87... Ra2+ {[%clk 0:02:05.2]} 88. Ke1 {[%clk 0:00:14.5]}
88... Ke3 {[%clk 0:02:06.1]} 89. Rg3+ {[%clk 0:00:14.6]} 89... Kf4 {[%clk
0:02:06.7]} 0-1